fUST/lending_fUST_20250425
["ID","MTS","AMOUNT","RATE_DAILY","PERIOD"]
[358884624,1745524249312,-496.25354558,0.00017089,2]
[358884625,1745524249324,-466.83377839,0.00017089,2]
[358884626,1745524249333,-967.0,0.00017089,2]
[358884627,1745524249344,-500.0,0.00017089,2]
[358884628,1745524249354,-531.89,0.00017089,2]
[358884629,1745524249364,-1509.1,0.00017089,2]
[358884630,1745524249374,-500.0,0.00017089,2]
[358884631,1745524249383,-500.0,0.00017089,2]
[358884632,1745524249394,-765.3,0.00017089,2]
[358884633,1745524249403,-500.0,0.00017089,2]
[358884634,1745524249413,-1761.2,0.00017089,2]
[358884635,1745524249423,-803.16,0.00017089,2]
[358884636,1745524249433,-500.0,0.00017089,2]
[358884637,1745524249443,-500.0,0.00017089,2]
[358884638,1745524249452,-609.33,0.00017089,2]
[358884639,1745524249461,-500.0,0.00017089,2]
[358884640,1745524249472,-500.0,0.00017359,2]
[358884641,1745524249481,-500.0,0.00017359,2]
[358884642,1745524249491,-1610.75,0.00017359,2]
[358884643,1745524249501,-500.0,0.00017359,2]
[358884644,1745524249511,-502.45,0.00017359,2]
[358884645,1745524249520,-4565.85,0.00017359,2]
[358884646,1745524249530,-500.0,0.00017359,2]
[358884647,1745524249539,-5781.75,0.00017359,2]
[358884648,1745524249551,-500.0,0.00017359,2]
[358884649,1745524249560,-1093.39,0.00017359,2]
[358884650,1745524249570,-500.0,0.00017359,2]
[358884651,1745524249580,-9387.04,0.00017359,2]
[358884652,1745524249590,-2565.27508763,0.00017359,2]
[358884653,1745524249846,-3715.48491237,0.00017359,2]
[358884654,1745524249856,-1090.92,0.00017359,2]
[358884655,1745524249865,-117.73508758,0.00017359,2]
[358884656,1745524249879,-382.26491242,0.00017359,2]
[358884657,1745524249889,-863.49,0.00017359,2]
[358884658,1745524249899,-568.63,0.00017359,2]
[358884659,1745524249908,-2668.15627202,0.00017359,2]
[358884660,1745524249923,-2035.91372798,0.00017359,2]
[358884661,1745524249934,-1843.07,0.00017359,2]
[358884662,1745524249946,-500.0,0.00017359,2]
[358884663,1745524249957,-1724.01,0.00017359,2]
[358884664,1745524249967,-583.61,0.00017359,2]
[358884665,1745524249978,-500.0,0.00017359,2]
[358884666,1745524249988,-503.38,0.0001736,2]
[358884667,1745524250000,-500.0,0.0001736,2]
[358884668,1745524250011,-500.0,0.0001736,2]
[358884669,1745524250020,-1019.56,0.0001736,2]
[358884670,1745524250029,-500.0,0.0001736,2]
[358884671,1745524250041,-500.0,0.0001736,2]
[358884672,1745524250051,-500.0,0.0001736,2]
[358884673,1745524250064,-700.34990836,0.0001736,2]
[358884674,1745524250077,-500.0,0.0001736,2]
[358884675,1745524250230,-115.32009164,0.0001736,2]
[358884676,1745524250239,-584.67990836,0.0001736,2]
[358884677,1745524250397,-551.86009164,0.0001736,2]
[358884678,1745524250407,-500.0,0.0001736,2]
[358884679,1745524250418,-1749.9,0.0001736,2]
[358884680,1745524250428,-606.64,0.0001736,2]
[358884681,1745524250437,-1310.16,0.0001736,2]
[358884682,1745524250447,-693.49,0.0001736,2]
[358884683,1745524250456,-500.0,0.0001736,2]
[358884684,1745524250466,-235.9867533,0.0001736,2]
[358884685,1745524250476,-500.0,0.0001736,2]
[358884686,1745524250486,-1050.67,0.0001736,2]
[358884687,1745524250496,-669.34,0.0001736,2]
[358884688,1745524250505,-51.36252405,0.0001736,2]
[358884689,1745524250517,-4311.30747595,0.0001736,2]
[358884690,1745524250527,-287.31887554,0.0001736,2]
[358884691,1745524250537,-500.0,0.0001736,2]
[358884692,1745524250547,-1440.68,0.0001736,2]
[358884693,1745524250557,-500.0,0.0001736,2]
[358884694,1745524250567,-500.0,0.0001736,2]
[358884695,1745524250576,-1678.32,0.0001736,2]
[358884696,1745524250586,-500.0,0.0001736,2]
[358884697,1745524250596,-500.0,0.0001736,2]
[358884698,1745524250606,-4053.66,0.0001736,2]
[358884699,1745524250618,-500.0,0.0001736,2]
[358884700,1745524250629,-1187.28,0.0001736,2]
[358884701,1745524250639,-643.87,0.0001736,2]
[358884702,1745524250649,-383.4529822,0.0001736,2]
[358884703,1745524250659,-1402.52,0.0001736,2]
[358884704,1745524250669,-599.93,0.0001736,2]
[358884705,1745524250679,-500.0,0.0001736,2]
[358884706,1745524250690,-500.0,0.0001736,2]
[358884707,1745524250699,-500.0,0.0001736,2]
[358884708,1745524250709,-500.0,0.0001736,2]
[358884709,1745524250719,-1850.52,0.0001736,2]
[358884710,1745524250729,-500.0,0.0001736,2]
[358884711,1745524250738,-500.0,0.0001736,2]
[358884712,1745524250748,-4499.32,0.0001736,2]
[358884713,1745524250758,-3908.64,0.0001736,2]
[358884714,1745524250768,-507.99,0.0001736,2]
[358884715,1745524250778,-528.57,0.0001736,2]
[358884716,1745524250790,-500.0,0.0001736,2]
[358884717,1745524250800,-649.42,0.0001736,2]
[358884718,1745524250810,-892.39,0.0001736,2]
[358884719,1745524250819,-751.46,0.0001736,2]
[358884720,1745524250829,-500.0,0.0001736,2]
[358884721,1745524250839,-4410.01,0.0001736,2]
[358884722,1745524250848,-500.0,0.0001736,2]
[358884723,1745524250857,-809.96,0.0001736,2]
[358884724,1745524250867,-438.93720256,0.0001736,2]
[358884725,1745524250878,-500.0,0.0001736,2]
[358884726,1745524250887,-500.0,0.0001736,2]
[358884727,1745524250897,-500.0,0.0001736,2]
[358884728,1745524250907,-832.16,0.00017361,2]
[358884729,1745524250916,-500.0,0.00017361,2]
[358884730,1745524250926,-613.26,0.00017361,2]
[358884731,1745524250936,-1504.3,0.00017361,2]
[358884732,1745524250946,-764.91,0.00017361,2]
[358884733,1745524250955,-500.0,0.00017361,2]
[358884734,1745524250965,-1365.19,0.00017361,2]
[358884735,1745524250975,-500.0,0.00017361,2]
[358884736,1745524250984,-500.0,0.00017361,2]
[358884737,1745524250993,-568.47,0.00017361,2]
[358884738,1745524251003,-500.0,0.00017361,2]
[358884739,1745524251013,-1337.94,0.00017361,2]
[358884740,1745524251023,-783.58,0.00017361,2]
[358884741,1745524251032,-500.0,0.00017361,2]
[358884742,1745524251042,-1529.23,0.00017361,2]
[358884743,1745524251052,-500.0,0.00017361,2]
[358884744,1745524251062,-1055.99,0.00017361,2]
[358884745,1745524251071,-500.0,0.00017361,2]
[358884746,1745524251081,-500.0,0.00017361,2]
[358884747,1745524251091,-500.0,0.00017361,2]
[358884748,1745524251101,-500.0,0.00017361,2]
[358884749,1745524251111,-500.0,0.00017361,2]
[358884750,1745524251121,-803.73,0.00017361,2]
[358884751,1745524251131,-500.0,0.00017361,2]
[358884752,1745524251140,-829.67,0.00017361,2]
[358884753,1745524251150,-169.29638687,0.00017361,2]
[358884754,1745524252010,-1153.74361313,0.00017361,2]
[358884755,1745524252020,-952.08,0.00017361,2]
[358884756,1745524252029,-500.0,0.00017361,2]
[358884757,1745524252039,-500.0,0.00017361,2]
[358884758,1745524252047,-1001.81,0.00017361,2]
[358884759,1745524252057,-440.15049375,0.00017361,2]
[358884760,1745524252066,-500.0,0.00017361,2]
[358884761,1745524252075,-500.0,0.00017361,2]
[358884762,1745524252085,-506.52,0.00017361,2]
[358884763,1745524252094,-765.41,0.00017361,2]
[358884764,1745524252103,-500.0,0.00017361,2]
[358884765,1745524252113,-500.0,0.00017361,2]
[358884766,1745524252127,-500.0,0.00017361,2]
[358884767,1745524252136,-500.0,0.00017361,2]
[358884768,1745524252147,-1217.15084126,0.00017361,2]
[358884769,1745524252163,-456.39915874,0.00017361,2]
[358884770,1745524252175,-847.52,0.00017361,2]
[358884771,1745524252185,-1103.67,0.00017361,2]
[358884772,1745524252195,-500.0,0.00017361,2]
[358884773,1745524252205,-641.33,0.00017361,2]
[358884774,1745524252214,-519.46590727,0.00017361,2]
[358884775,1745524252224,-505.47142738,0.00017361,2]
[358884776,1745524252234,-531.55391262,0.00017361,2]
[358884777,1745524252246,-594.43,0.00017361,2]
[358884778,1745524252255,-432.49311301,0.00017361,2]
[358884779,1745524252265,-500.0,0.00017361,2]
[358884780,1745524252277,-955.31,0.00017361,2]
[358884781,1745524252287,-8121.09,0.00017361,2]
[358884782,1745524252296,-678.82,0.00017361,2]
[358884783,1745524252305,-714.54331643,0.00017361,2]
[358884784,1745524252321,-3469.20668357,0.00017361,2]
[358884785,1745524252330,-500.0,0.00017361,2]
[358884786,1745524252340,-500.0,0.00017361,2]
[358884787,1745524252350,-500.0,0.00017361,2]
[358884788,1745524252359,-500.0,0.00017361,2]
[358884789,1745524252371,-1063.07,0.00017361,2]
[358884790,1745524252380,-1627.51,0.00017361,2]
[358884791,1745524252389,-500.0,0.00017361,2]
[358884792,1745524252399,-500.0,0.00017361,2]
[358884793,1745524252408,-570.79,0.00017361,2]
[358884794,1745524252417,-680.5,0.00017361,2]
[358884795,1745524252426,-500.0,0.00017361,2]
[358884796,1745524252436,-500.0,0.00017361,2]
[358884797,1745524252445,-500.0,0.00017361,2]
[358884798,1745524252455,-568.27800806,0.00017361,2]
[358884799,1745524252464,-500.0,0.00017361,2]
[358884800,1745524252474,-831.23,0.00017361,2]
[358884801,1745524252483,-500.0,0.00017361,2]
[358884802,1745524252492,-1150.86,0.00017361,2]
[358884803,1745524252502,-6534.19,0.00017361,2]
[358884804,1745524252511,-1086.6,0.00017361,2]
[358884805,1745524252520,-980.97,0.00017361,2]
[358884806,1745524252530,-507.15,0.00017361,2]
[358884807,1745524252540,-1143.43,0.00017361,2]
[358884808,1745524252549,-500.0,0.00017361,2]
[358884809,1745524252559,-1138.89,0.00017361,2]
[358884810,1745524252569,-500.0,0.00017361,2]
[358884811,1745524252578,-609.52,0.00017361,2]
[358884812,1745524252588,-760.57,0.00017361,2]
[358884813,1745524252597,-2975.29,0.00017361,2]
[358884814,1745524252607,-349.18492513,0.00017361,2]
[358884815,1745524252616,-1860.88,0.00017361,2]
[358884816,1745524252627,-863.13,0.00017361,2]
[358884817,1745524252637,-500.0,0.00017361,2]
[358884818,1745524252647,-1743.164742,0.00017362,2]
[358884819,1745524252657,-1743.16474136,0.00017362,2]
[358884820,1745524252667,-151.0,0.00017362,2]
[358884821,1745524252676,-215.88951422,0.00017363,2]
[358884822,1745524252687,-500.0,0.00017363,2]
[358884823,1745524252696,-165.74366964,0.00017363,2]
[358884824,1745524252706,-500.0,0.00017363,2]
[358884825,1745524252715,-500.0,0.00017363,2]
[358884826,1745524252724,-500.0,0.00017363,2]
[358884827,1745524252734,-263.31029108,0.00017363,2]
[358884828,1745524252743,-500.0,0.00017363,2]
[358884829,1745524252753,-500.0,0.00017363,2]
[358884830,1745524252762,-500.0,0.00017363,2]
[358884831,1745524252771,-500.0,0.00017363,2]
[358884832,1745524252781,-502.38,0.00017363,2]
[358884833,1745524252794,-151.0,0.00017363,2]
[358884834,1745524252803,-151.0,0.00017363,2]
[358884835,1745524252812,-500.0,0.00017363,2]
[358884836,1745524252822,-500.0,0.00017363,2]
[358884837,1745524252831,-500.0,0.00017363,2]
[358884838,1745524252841,-151.0,0.00017363,2]
[358884839,1745524252850,-151.0,0.00017363,2]
[358884840,1745524252859,-78.1727658,0.00017363,2]
[358884841,1745524519891,2889.16919103,0.00025,30]
[358884844,1745525248080,-259.472301,0.00015624,2]
[358884845,1745525248105,-250.0,0.00016505,2]
[358884846,1745525248128,-300.0,0.00016595,2]
[358884847,1745525248150,-433.60967596,0.00016596,2]
[358884848,1745525248181,-500.0,0.00016596,2]
[358884849,1745525248202,-500.0,0.00016596,2]
[358884850,1745525248223,-500.0,0.00016596,2]
[358884851,1745525248244,-500.0,0.00016596,2]
[358884852,1745525248266,-268.29740516,0.00016596,2]
[358884853,1745525248287,-199.30321478,0.00016596,2]
[358884854,1745525248316,-500.0,0.00016596,2]
[358884855,1745525248338,-500.0,0.00016596,2]
[358884856,1745525248360,-500.0,0.00016596,2]
[358884857,1745525248381,-500.0,0.00016596,2]
[358884858,1745525248408,-500.0,0.00016596,2]
[358884859,1745525248430,-500.0,0.00016596,2]
[358884860,1745525248451,-500.0,0.00016596,2]
[358884861,1745525248472,-500.0,0.00016596,2]
[358884862,1745525248493,-500.0,0.00016596,2]
[358884863,1745525248520,-500.0,0.00016596,2]
[358884864,1745525248540,-500.0,0.00016596,2]
[358884865,1745525248562,-500.0,0.00016596,2]
[358884866,1745525248589,-500.0,0.00016596,2]
[358884867,1745525248609,-500.0,0.00016596,2]
[358884868,1745525248630,-500.0,0.00016596,2]
[358884869,1745525248652,-500.0,0.00016596,2]
[358884870,1745525248678,-500.0,0.00016596,2]
[358884871,1745525248698,-500.0,0.00016596,2]
[358884872,1745525248718,-500.0,0.00016596,2]
[358884873,1745525248740,-500.0,0.00016596,2]
[358884874,1745525248767,-500.0,0.00016596,2]
[358884875,1745525248790,-500.0,0.00016596,2]
[358884876,1745525248812,-500.0,0.00016596,2]
[358884877,1745525248833,-500.0,0.00016596,2]
[358884878,1745525248860,-420.20568268,0.00016596,2]
[358884879,1745525248886,-500.0,0.00016596,2]
[358884880,1745525248908,-500.0,0.00016596,2]
[358884881,1745525248936,-500.0,0.00016596,2]
[358884882,1745525248956,-530.0,0.00016596,2]
[358884883,1745525248979,-500.0,0.00016596,2]
[358884884,1745525249004,-500.0,0.00016596,2]
[358884885,1745525249029,-500.0,0.00016596,2]
[358884886,1745525249054,-500.0,0.00016596,2]
[358884887,1745525249079,-500.0,0.00016596,2]
[358884888,1745525249104,-500.0,0.00016596,2]
[358884889,1745525249129,-500.0,0.00016596,2]
[358884890,1745525249153,-500.0,0.00016596,2]
[358884891,1745525249177,-500.0,0.00016596,2]
[358884892,1745525249201,-500.0,0.00016596,2]
[358884893,1745525249226,-248.74634722,0.00016596,2]
[358884894,1745525249249,-500.0,0.00016596,2]
[358884895,1745525249273,-500.0,0.00016596,2]
[358884896,1745525249297,-500.0,0.00016596,2]
[358884897,1745525249321,-500.0,0.00016596,2]
[358884898,1745525249345,-500.0,0.00016596,2]
[358884899,1745525249369,-500.0,0.00016596,2]
[358884900,1745525249394,-500.0,0.00016596,2]
[358884901,1745525249415,-500.0,0.00016596,2]
[358884902,1745525249435,-1200.0,0.00016597,2]
[358884903,1745525249454,-300.0,0.00016597,2]
[358884904,1745525249475,-2990.61289905,0.00016605,2]
[358884905,1745525249496,-500.0,0.00016605,2]
[358884906,1745525249516,-500.0,0.00016605,2]
[358884907,1745525249536,-1585.3,0.00016605,2]
[358884908,1745525249556,-500.0,0.00016605,2]
[358884909,1745525249577,-519.47,0.00016605,2]
[358884910,1745525249598,-4491.81,0.00016605,2]
[358884911,1745525249618,-500.0,0.00016605,2]
[358884912,1745525249639,-5662.15,0.00016605,2]
[358884913,1745525249659,-500.0,0.00016605,2]
[358884914,1745525249851,-1047.83,0.00016605,2]
[358884915,1745525249873,-500.0,0.00016605,2]
[358884916,1745525249895,-9204.25,0.00016605,2]
[358884917,1745525249917,-500.0,0.00016605,2]
[358884918,1745525249940,-6671.08,0.00016605,2]
[358884919,1745525249961,-1000.01,0.00016605,2]
[358884920,1745525249982,-500.0,0.00016605,2]
[358884921,1745525250006,-791.53,0.00016605,2]
[358884922,1745525250029,-521.25,0.00016605,2]
[358884923,1745525250050,-4393.17,0.00016605,2]
[358884924,1745525250071,-1689.48,0.00016605,2]
[358884925,1745525250096,-500.0,0.00016605,2]
[358884926,1745525250117,-1580.35,0.00016605,2]
[358884927,1745525250140,-555.81,0.00016605,2]
[358884928,1745525250163,-500.0,0.00016605,2]
[358884929,1745525250185,-576.92,0.00016605,2]
[358884930,1745525250207,-500.0,0.00016605,2]
[358884931,1745525250227,-1168.6,0.00016605,2]
[358884932,1745525250249,-677.37,0.00016605,2]
[358884933,1745525250270,-1624.91,0.00016605,2]
[358884934,1745525250291,-963.12,0.00016605,2]
[358884935,1745525250312,-509.00604722,0.00016605,2]
[358884936,1745525250334,-1221.81,0.00016605,2]
[358884937,1745525250355,-2353.27419231,0.00016605,2]
[358884941,1745525331076,-500.0,0.00016597,2]
[358884942,1745525331098,-500.0,0.00016597,2]
[358884943,1745525331120,-500.0,0.00016597,2]
[358884944,1745525331149,-5426.23,0.00016597,2]
[358884945,1745525331173,-511.66383786,0.00016601,2]
[358884946,1745525331196,-300.0,0.00016604,2]
[358884947,1745525331221,-1831.74580769,0.00016605,2]
[358884948,1745525331243,-500.0,0.00016605,2]
[358884949,1745525331265,-500.0,0.00016605,2]
[358884950,1745525331288,-1621.79,0.00016605,2]
[358884951,1745525331312,-3865.28,0.00016605,2]
[358884952,1745525331334,-500.0,0.00016605,2]
[358884953,1745525331356,-500.0,0.00016605,2]
[358884954,1745525331380,-1109.17,0.00016605,2]
[358884955,1745525331405,-549.94,0.00016605,2]
[358884956,1745525331430,-500.0,0.00016605,2]
[358884957,1745525331453,-500.0,0.00016605,2]
[358884958,1745525331477,-1361.1,0.00016605,2]
[358884959,1745525331500,-1717.14,0.00016605,2]
[358884960,1745525331522,-302.23319391,0.00016608,2]
[358884961,1745525331544,-500.0,0.000167,2]
[358884962,1745525331567,-500.0,0.000167,2]
[358884963,1745525331590,-500.0,0.00016701,2]
[358884964,1745525331614,-934.59,0.00016701,2]
[358884965,1745525331636,-500.0,0.00016701,2]
[358884966,1745525331659,-500.0,0.00016701,2]
[358884967,1745525331680,-500.0,0.00016701,2]
[358884968,1745525331702,-500.0,0.00016701,2]
[358884969,1745525331723,-506.15298993,0.00016701,2]
[358884970,1745525331746,-500.0,0.00016701,2]
[358884971,1745525331768,-500.0,0.00016701,2]
[358884972,1745525331789,-505.19616564,0.00016701,2]
[358884973,1745525331811,-457.76800497,0.00016701,2]
[358884974,1745525367081,-581.96948745,0.00016497,2]
[358884985,1745525432024,-80.93389275,0.00016497,2]
[358884986,1745525432033,-300.0,0.00016596,2]
[358884987,1745525432042,-300.0,0.00016596,2]
[358884988,1745525432052,-480.0,0.00016596,2]
[358884989,1745525432061,-500.0,0.00016597,2]
[358884990,1745525432071,-1004.17,0.00016597,2]
[358884991,1745525432080,-8820.74,0.00016597,2]
[358884993,1745525432090,-500.0,0.00016597,2]
[358884994,1745525432100,-4210.12,0.00016597,2]
[358884995,1745525432111,-500.0,0.00016597,2]
[358884996,1745525432121,-532.65,0.00016597,2]
[358884997,1745525432131,-2392.49031924,0.00016601,2]
[358884998,1745525432140,-500.0,0.00016605,2]
[358884999,1745525432150,-500.0,0.00016605,2]
[358885000,1745525432161,-3603.75,0.00016605,2]
[358885001,1745525432171,-500.0,0.00016605,2]
[358885002,1745525432180,-500.0,0.00016605,2]
[358885003,1745525432189,-855.2,0.00016605,2]
[358885004,1745525432200,-4166.04,0.00016605,2]
[358885005,1745525432209,-506.55,0.00016605,2]
[358885006,1745525432220,-3229.94025103,0.00016605,2]
[358885008,1745525437810,-500.0,0.00016595,2]
[358885009,1745525437820,-500.0,0.00016595,2]
[358885010,1745525437839,-197.89573403,0.00016595,2]
[358885011,1745525437916,-302.10426597,0.00016595,2]
[358885012,1745525437926,-316.89520299,0.00016595,2]
[358885013,1745525437936,-500.0,0.00016597,2]
[358885014,1745525437946,-996.30974897,0.00016605,2]
[358885015,1745525437956,-720.15,0.00016605,2]
[358885016,1745525437967,-797.04,0.00016605,2]
[358885017,1745525437978,-500.0,0.00016605,2]
[358885018,1745525437988,-1299.59,0.00016605,2]
[358885019,1745525437998,-1519.25,0.000167,2]
[358885020,1745525438007,-500.0,0.000167,2]
[358885021,1745525438017,-500.0,0.000167,2]
[358885022,1745525438026,-501.73171305,0.000167,2]
[358885023,1745525438036,-4304.65,0.000167,2]
[358885024,1745525438045,-500.0,0.000167,2]
[358885025,1745525438055,-500.0,0.000167,2]
[358885026,1745525438065,-6393.12,0.000167,2]
[358885027,1745525438076,-958.34,0.000167,2]
[358885028,1745525438086,-758.55,0.000167,2]
[358885029,1745525438096,-500.0,0.000167,2]
[358885030,1745525438105,-44.97341135,0.00016701,2]
[358885031,1745525438114,-500.0,0.00016701,2]
[358885032,1745525438124,-762.81,0.00016701,2]
[358885033,1745525438135,-500.0,0.00016701,2]
[358885034,1745525438145,-500.0,0.00016701,2]
[358885035,1745525438156,-500.0,0.00016701,2]
[358885036,1745525438170,-500.0,0.00016701,2]
[358885037,1745525438181,-399.0784713,0.00016701,2]
[358885038,1745525438192,-505.30431843,0.00016701,2]
[358885039,1745525438203,-509.72264243,0.00016701,2]
[358885040,1745525438215,-505.18507414,0.00016701,2]
[358885041,1745525438224,-500.0,0.00016701,2]
[358885042,1745525438234,-500.0,0.00016701,2]
[358885043,1745525438245,-500.0,0.00016701,2]
[358885044,1745525438256,-500.0,0.00016701,2]
[358885045,1745525438265,-1206.03,0.00016701,2]
[358885046,1745525438275,-500.0,0.00016701,2]
[358885047,1745525438284,-500.0,0.00016701,2]
[358885048,1745525438293,-500.0,0.00016701,2]
[358885049,1745525438303,-506.67288113,0.00016701,2]
[358885050,1745525438312,-500.0,0.00016701,2]
[358885051,1745525438323,-500.0,0.00016701,2]
[358885052,1745525438333,-562.15,0.00016701,2]
[358885053,1745525438343,-1401.51,0.00016701,2]
[358885054,1745525438353,-500.0,0.00016701,2]
[358885055,1745525438362,-501.62148324,0.00016701,2]
[358885056,1745525438371,-504.13450546,0.00016701,2]
[358885057,1745525438380,-701.16,0.00016701,2]
[358885058,1745525438390,-500.0,0.00016701,2]
[358885059,1745525438400,-500.0,0.00016701,2]
[358885060,1745525438409,-500.0,0.00016701,2]
[358885061,1745525438420,-500.0,0.00016701,2]
[358885062,1745525438429,-500.0,0.00016701,2]
[358885063,1745525438439,-640.47,0.00016701,2]
[358885064,1745525438699,-500.0,0.00016701,2]
[358885065,1745525438709,-500.0,0.00016701,2]
[358885066,1745525438720,-1251.42,0.00016701,2]
[358885067,1745525438730,-500.0,0.00016701,2]
[358885068,1745525438739,-500.0,0.00016701,2]
[358885069,1745525438748,-500.0,0.00016701,2]
[358885070,1745525438759,-590.22,0.00016701,2]
[358885071,1745525438769,-200.95080609,0.00016701,2]
[358885072,1745525438779,-602.3823,0.00016701,2]
[358885073,1745525438789,-500.0,0.00016701,2]
[358885074,1745525438799,-500.0,0.00016701,2]
[358885075,1745525438808,-500.0,0.00016701,2]
[358885076,1745525438818,-521.1,0.00016701,2]
[358885077,1745525438828,-500.0,0.00016701,2]
[358885078,1745525438837,-1327.14,0.00016701,2]
[358885079,1745525438847,-500.0,0.00016701,2]
[358885080,1745525438857,-1226.44,0.00016701,2]
[358885081,1745525438867,-500.0,0.00016701,2]
[358885082,1745525438877,-500.0,0.00016701,2]
[358885083,1745525438886,-500.0,0.00016701,2]
[358885084,1745525438896,-500.0,0.00016701,2]
[358885085,1745525438905,-500.0,0.00016701,2]
[358885086,1745525438915,-500.0,0.00016701,2]
[358885087,1745525438925,-1401.79,0.00016701,2]
[358885088,1745525438935,-500.0,0.00016701,2]
[358885089,1745525438946,-500.0,0.00016701,2]
[358885090,1745525438956,-500.0,0.00016701,2]
[358885091,1745525438967,-967.99,0.00016701,2]
[358885092,1745525438978,-500.0,0.00016701,2]
[358885093,1745525438988,-520.85142931,0.00016701,2]
[358885094,1745525438998,-503.31382095,0.00016701,2]
[358885095,1745525439007,-595.3,0.00016701,2]
[358885096,1745525439017,-500.0,0.00016701,2]
[358885097,1745525439026,-500.0,0.00016701,2]
[358885098,1745525439035,-500.0,0.00016701,2]
[358885099,1745525439045,-548.88449254,0.00016701,2]
[358885100,1745525439056,-500.0,0.00016701,2]
[358885101,1745525439066,-744.99,0.00016701,2]
[358885102,1745525439075,-500.0,0.00016701,2]
[358885103,1745525439085,-500.0,0.00016701,2]
[358885104,1745525439095,-500.0,0.00016701,2]
[358885105,1745525439104,-500.0,0.00016701,2]
[358885106,1745525439114,-500.0,0.00016701,2]
[358885107,1745525439123,-500.0,0.00016701,2]
[358885108,1745525439133,-500.0,0.00016701,2]
[358885109,1745525439142,-500.0,0.00016701,2]
[358885110,1745525439152,-658.35,0.00016701,2]
[358885111,1745525439163,-768.15,0.00016701,2]
[358885112,1745525439175,-500.0,0.00016701,2]
[358885113,1745525439185,-872.74,0.00016701,2]
[358885114,1745525439194,-1296.12,0.00016701,2]
[358885115,1745525439206,-500.0,0.00016701,2]
[358885116,1745525439215,-500.0,0.00016701,2]
[358885117,1745525439224,-500.0,0.00016701,2]
[358885118,1745525439233,-417.55234371,0.00016701,2]
[358885119,1745525439244,-195.17968762,0.00016701,2]
[358885120,1745525439254,-918.33,0.00016701,2]
[358885121,1745525439263,-500.0,0.00016701,2]
[358885122,1745525439274,-500.0,0.00016701,2]
[358885123,1745525439283,-528.46195602,0.00016701,2]
[358885124,1745525439292,-500.0,0.00016701,2]
[358885125,1745525439302,-500.0,0.00016701,2]
[358885126,1745525439313,-500.0,0.00016701,2]
[358885127,1745525439322,-500.0,0.00016701,2]
[358885129,1745525439332,-500.0,0.00016701,2]
[358885130,1745525439342,-500.0,0.00016701,2]
[358885131,1745525439352,-517.30444048,0.00016701,2]
[358885132,1745525439361,-620.73410057,0.00016701,2]
[358885133,1745525439371,-500.0,0.00016701,2]
[358885134,1745525439380,-500.0,0.00016701,2]
[358885135,1745525439390,-317.27692035,0.00016701,2]
[358885136,1745525439399,-500.0,0.00016701,2]
[358885137,1745525439410,-503.29216947,0.00016701,2]
[358885138,1745525439419,-500.0,0.00016701,2]
[358885139,1745525439429,-500.0,0.00016701,2]
[358885141,1745525439439,-500.0,0.00016701,2]
[358885142,1745525439448,-500.0,0.00016701,2]